bitfinex/quotes_SOLUSD_20230120
["timestamp","ask_amount","ask_price","bid_price","bid_amount"]
[1674251181262,31.33,23.945,23.934,0.96]
[1674251181473,31.32,23.948,23.934,0.96]
[1674251181683,27.0,23.947,23.934,0.96]
[1674251181903,31.33,23.946,23.934,0.96]
[1674251182331,31.33,23.946,23.933,10.0]
[1674251182543,31.33,23.946,23.934,0.96]
[1674251183680,31.33,23.946,23.933,10.0]
[1674251183997,17.0,23.945,23.933,10.0]
[1674251184214,31.33,23.944,23.933,10.0]
[1674251184411,31.32,23.948,23.933,10.0]
[1674251185592,31.32,23.948,23.934,0.96]
[1674251186200,20.0,23.951,23.933,10.0]
[1674251186201,31.32,23.95,23.933,10.0]
[1674251186407,31.32,23.95,23.934,0.96]
[1674251186954,31.32,23.95,23.933,10.0]
[1674251187169,31.32,23.95,23.935,0.96]
[1674251187585,10.0,23.95,23.934,0.96]
[1674251187987,31.32,23.949,23.934,0.96]
[1674251188413,17.0,23.948,23.934,0.96]
[1674251188626,10.0,23.947,23.934,0.96]
[1674251189050,17.0,23.948,23.934,0.96]
[1674251189257,17.0,23.949,23.934,0.96]
[1674251189472,31.32,23.948,23.933,10.0]
[1674251189768,17.0,23.947,23.933,10.0]
[1674251190206,31.33,23.946,23.933,10.0]
[1674251190414,17.0,23.945,23.933,10.0]
[1674251190973,31.33,23.946,23.933,10.0]
[1674251190974,31.32,23.949,23.933,10.0]
[1674251191165,17.0,23.948,23.934,0.96]
[1674251191351,31.33,23.947,23.934,0.96]
[1674251191785,31.32,23.95,23.934,0.96]
[1674251192316,31.32,23.955,23.934,0.96]
[1674251192522,10.0,23.953,23.934,0.96]
[1674251192736,51.32,23.952,23.934,0.96]
[1674251192949,17.0,23.951,23.934,0.96]
[1674251193153,20.0,23.95,23.934,0.96]
[1674251193470,17.0,23.949,23.934,0.96]
[1674251193682,51.32,23.948,23.933,123.495]
[1674251193876,17.0,23.947,23.933,123.495]
[1674251194526,10.0,23.946,23.933,123.495]
[1674251194750,17.0,23.947,23.933,123.495]
[1674251195128,31.33,23.946,23.933,123.495]
[1674251195765,31.33,23.946,23.933,10.0]
[1674251196212,10.0,23.949,23.934,0.96]
[1674251196419,48.32,23.948,23.934,0.96]
[1674251196820,31.32,23.948,23.934,0.96]
[1674251197567,31.32,23.948,23.93,25.75]
[1674251197899,37.0,23.947,23.927,41.75]
[1674251198078,32.29,23.946,23.927,41.75]
[1674251198293,37.0,23.945,23.927,41.75]
[1674251198518,42.29,23.944,23.927,41.75]
[1674251198849,37.0,23.943,23.92,81.4085]
[1674251199050,32.29,23.942,23.92,81.4085]
[1674251199258,47.0,23.941,23.921,10.0]
[1674251199465,31.34,23.94,23.921,10.0]
[1674251199680,17.0,23.939,23.921,10.0]
[1674251199904,31.34,23.938,23.921,10.0]
[1674251200637,17.0,23.939,23.925,0.96]
[1674251200822,31.34,23.938,23.925,0.96]
[1674251201035,31.34,23.938,23.921,10.0]
[1674251201250,10.0,23.937,23.921,10.0]
[1674251201461,48.34,23.936,23.921,10.0]
[1674251201686,49.3,23.936,23.921,10.0]
[1674251201885,49.3,23.936,23.916,10.0]
[1674251202220,10.0,23.934,23.916,10.0]
[1674251202404,52.3,23.933,23.916,10.0]
[1674251202618,17.0,23.932,23.916,10.0]
[1674251202944,52.31,23.931,23.916,10.0]
[1674251203151,17.0,23.93,23.916,10.0]
[1674251203360,51.35,23.931,23.916,10.0]
[1674251203780,31.34,23.936,23.92,15.82]
[1674251203974,31.34,23.94,23.92,15.82]
[1674251204188,31.33,23.943,23.921,33.49232153]
[1674251204420,31.33,23.944,23.922,0.96]
[1674251204613,31.33,23.944,23.922,17.45232153]
[1674251204825,31.33,23.944,23.923,33.49232153]
[1674251205030,31.33,23.944,23.924,0.96]
[1674251205246,31.33,23.944,23.924,17.45232153]
[1674251205461,31.33,23.944,23.925,16.49232153]
[1674251205689,20.0,23.943,23.925,16.49232153]
[1674251205870,20.0,23.943,23.93,15.85]
[1674251205871,10.0,23.943,23.93,15.85]
[1674251206292,142.6229,23.958,23.931,16.49232153]
[1674251206732,10.0,23.957,23.932,10.0]
[1674251206917,31.31,23.956,23.932,10.0]
[1674251207132,31.31,23.956,23.933,0.96]
[1674251207450,10.0,23.955,23.934,10.0]
[1674251207655,31.32,23.954,23.934,10.0]
[1674251207866,17.0,23.945,23.93,15.85]
[1674251208091,17.0,23.945,23.929,58.24232153]
[1674251208308,10.0,23.944,23.93,10.96]
[1674251208737,51.33,23.943,23.924,10.0]
[1674251209040,10.0,23.941,23.924,10.0]
[1674251209368,68.34,23.94,23.924,10.0]
[1674251209560,51.34,23.94,23.924,10.0]
[1674251210183,20.0,23.94,23.924,10.0]
[1674251210394,20.0,23.942,23.924,10.0]
[1674251210623,48.33,23.941,23.925,0.96]
[1674251210933,20.0,23.94,23.925,0.96]
[1674251211121,20.0,23.94,23.924,10.0]
[1674251211339,10.0,23.938,23.924,10.0]
[1674251212612,31.34,23.939,23.925,0.96]
[1674251212929,20.0,23.94,23.925,17.96]
[1674251213136,20.0,23.942,23.926,10.0]
[1674251213350,31.33,23.941,23.927,0.96]
[1674251213553,20.0,23.94,23.927,17.96]
[1674251213979,20.0,23.94,23.928,10.0]
[1674251214192,20.0,23.942,23.928,10.0]
[1674251214506,31.33,23.941,23.928,10.0]
[1674251214700,20.0,23.94,23.928,10.0]
[1674251214911,31.34,23.939,23.928,10.0]
[1674251215333,20.0,23.94,23.928,10.0]
[1674251215543,20.0,23.943,23.928,10.0]
[1674251215753,48.33,23.942,23.928,10.0]
[1674251215971,20.0,23.941,23.928,10.0]
[1674251216713,10.0,23.94,23.928,10.0]
[1674251217030,17.0,23.939,23.928,10.0]
[1674251217651,10.0,23.939,23.928,10.0]
[1674251217859,17.0,23.938,23.926,10.0]
[1674251218076,48.34,23.938,23.926,10.0]
[1674251218268,17.0,23.938,23.926,10.0]
[1674251218709,17.0,23.939,23.926,10.0]
[1674251219852,31.34,23.938,23.926,10.0]
[1674251220587,17.0,23.939,23.926,10.0]
[1674251221003,17.0,23.939,23.924,10.0]
[1674251221217,31.34,23.938,23.924,10.0]
[1674251221429,10.0,23.938,23.924,10.0]
[1674251221644,48.34,23.937,23.924,10.0]
[1674251221971,31.34,23.94,23.924,10.0]
[1674251222180,17.0,23.939,23.924,10.0]
[1674251222391,31.34,23.938,23.924,10.0]
[1674251222583,17.0,23.937,23.924,10.0]
[1674251222797,31.34,23.936,23.924,10.0]
[1674251223006,20.0,23.941,23.925,17.96]
[1674251223327,41.32,23.954,23.93,11.9]
[1674251223543,155.0382,23.954,23.931,17.96]
[1674251223758,155.0382,23.954,23.932,10.0]
[1674251223952,155.0382,23.954,23.933,17.96]
[1674251224163,155.0382,23.954,23.934,10.0]
[1674251224367,155.0382,23.954,23.935,0.96]
[1674251225221,10.0,23.945,23.935,0.96]
[1674251225647,155.0382,23.954,23.935,0.96]
[1674251225838,155.0382,23.954,23.934,10.0]
[1674251225839,155.0382,23.954,23.932,10.0]
[1674251226056,10.0,23.945,23.933,0.96]
[1674251226379,10.0,23.945,23.932,10.0]
[1674251227633,31.32,23.95,23.932,10.0]
[1674251227848,31.32,23.95,23.933,0.96]
[1674251228465,31.32,23.95,23.933,17.96]
[1674251228673,31.32,23.95,23.933,0.96]
[1674251228893,31.32,23.952,23.94,11.9]
[1674251229101,11.83,23.97,23.94,11.9]
[1674251229102,31.31,23.956,23.941,17.96]
[1674251229529,31.31,23.958,23.941,0.96]
[1674251229726,31.31,23.958,23.941,10.0]
[1674251230166,20.0,23.957,23.941,10.0]
[1674251230378,31.31,23.956,23.93,11.9]
[1674251230573,37.0,23.955,23.934,10.0]
[1674251230783,31.32,23.954,23.934,10.0]
[1674251230994,37.96,23.953,23.942,10.0]
[1674251231214,31.32,23.952,23.942,10.0]
[1674251231434,0.96,23.951,23.934,10.0]
[1674251231627,31.32,23.95,23.934,10.0]
[1674251231838,0.96,23.949,23.934,10.0]
[1674251232052,31.32,23.948,23.934,10.0]
[1674251232254,17.0,23.947,23.934,10.0]
[1674251232466,31.33,23.946,23.931,10.0]
[1674251232705,31.32,23.95,23.931,10.0]
[1674251232884,27.0,23.949,23.931,10.0]
[1674251233095,10.0,23.947,23.932,0.96]
[1674251233302,31.33,23.946,23.932,0.96]
[1674251233531,31.32,23.948,23.932,0.96]
[1674251233751,17.0,23.947,23.932,0.96]
[1674251233959,31.33,23.946,23.932,0.96]
[1674251234153,17.0,23.947,23.931,10.0]
[1674251234356,31.33,23.946,23.931,10.0]
[1674251234572,17.0,23.945,23.931,10.0]
[1674251235119,31.33,23.944,23.931,10.0]
[1674251235430,31.33,23.946,23.931,10.0]
[1674251235642,17.0,23.945,23.931,10.0]
[1674251235852,31.33,23.944,23.931,10.0]
[1674251236281,17.0,23.943,23.931,10.0]
[1674251236491,0.96,23.942,23.927,10.0]
[1674251236702,31.33,23.942,23.927,10.0]
[1674251236918,27.0,23.941,23.927,10.0]
[1674251237127,51.34,23.94,23.927,10.0]
[1674251237338,17.0,23.939,23.927,10.0]
[1674251237964,31.34,23.938,23.927,10.0]
[1674251238491,31.34,23.939,23.927,10.0]
[1674251238702,20.0,23.94,23.927,10.0]
[1674251238909,20.0,23.941,23.927,10.0]
[1674251239136,20.0,23.942,23.928,0.96]
[1674251239662,20.0,23.943,23.928,0.96]
[1674251239875,51.33,23.943,23.927,10.0]
[1674251240077,51.33,23.943,23.928,0.96]
[1674251240282,17.0,23.942,23.928,0.96]
[1674251240481,20.0,23.941,23.928,0.96]
[1674251242200,20.0,23.944,23.928,0.96]
[1674251242502,20.0,23.945,23.928,0.96]
[1674251242713,68.33,23.945,23.928,0.96]
[1674251243553,10.0,23.944,23.928,0.96]
[1674251243755,37.0,23.943,23.928,0.96]
[1674251245117,37.0,23.943,23.927,10.0]
[1674251245448,32.29,23.942,23.925,10.0]
[1674251245660,17.0,23.941,23.923,10.0]
[1674251245963,31.34,23.94,23.918,107.52756553]
[1674251246175,27.0,23.939,23.92,15.8]
[1674251246394,31.34,23.938,23.914,10.0]
[1674251246577,17.0,23.937,23.914,10.0]
[1674251246788,10.0,23.935,23.914,10.0]
[1674251247016,69.3,23.934,23.914,10.0]
[1674251247331,10.0,23.932,23.914,10.0]
[1674251247552,17.0,23.931,23.914,10.0]
[1674251247740,20.0,23.93,23.914,10.0]
[1674251247952,17.0,23.929,23.914,10.0]
[1674251248161,17.0,23.929,23.915,0.96]
[1674251248599,17.0,23.929,23.91,15.87]
[1674251248920,17.0,23.929,23.912,10.0]
[1674251249843,20.0,23.93,23.914,10.0]
[1674251250054,20.0,23.931,23.914,10.0]
[1674251250377,17.0,23.93,23.914,10.0]
[1674251250584,17.0,23.93,23.915,0.96]
[1674251252691,20.0,23.931,23.916,15.45144387]
[1674251252882,20.0,23.932,23.917,10.0]
[1674251253307,20.0,23.932,23.917,25.45144387]
[1674251253527,49.31,23.931,23.917,10.0]
[1674251253734,20.0,23.93,23.917,10.0]
[1674251253949,17.0,23.929,23.917,10.0]
[1674251254152,20.0,23.93,23.92,15.87]
[1674251254348,20.0,23.93,23.921,10.0]
[1674251254774,20.0,23.932,23.922,0.96]
[1674251254990,51.35,23.932,23.921,10.0]
[1674251255217,20.0,23.932,23.921,10.0]
[1674251255847,20.0,23.932,23.92,15.87]
[1674251256033,17.96,23.931,23.912,25.45144387]
[1674251256242,20.0,23.93,23.912,25.45144387]
[1674251256477,20.0,23.93,23.913,10.0]
[1674251256877,20.0,23.931,23.913,10.0]
[1674251257100,20.0,23.932,23.913,10.0]
[1674251257319,17.0,23.931,23.913,10.0]
[1674251257536,20.0,23.93,23.913,10.0]
[1674251257743,117.2255,23.933,23.921,10.0]
[1674251258668,10.0,23.936,23.922,0.96]
[1674251258906,10.0,23.936,23.921,41.3427984]
[1674251259095,10.0,23.936,23.921,10.0]
[1674251259306,31.34,23.935,23.919,10.0]
[1674251259631,10.0,23.933,23.914,10.0]
[1674251259842,32.31,23.932,23.914,10.0]
[1674251260267,49.31,23.932,23.914,10.0]
[1674251260475,20.0,23.931,23.914,10.0]
[1674251260697,49.31,23.93,23.914,10.0]
[1674251260881,10.0,23.929,23.914,10.0]
[1674251261090,49.31,23.928,23.914,10.0]
[1674251261300,49.31,23.928,23.913,10.0]
[1674251261524,20.0,23.927,23.913,10.0]
[1674251261842,49.31,23.926,23.913,10.0]
[1674251262164,17.0,23.925,23.913,10.0]
[1674251262363,31.36,23.924,23.913,10.0]
[1674251262567,31.35,23.928,23.913,10.0]
[1674251262991,31.35,23.932,23.914,0.96]
[1674251263198,31.35,23.932,23.913,10.0]
[1674251263620,31.35,23.932,23.914,0.96]
[1674251264045,17.0,23.931,23.913,10.0]
[1674251264242,31.35,23.93,23.913,10.0]
[1674251264453,17.0,23.929,23.913,10.0]
[1674251264681,31.35,23.928,23.913,10.0]
[1674251264882,17.0,23.927,23.913,10.0]
[1674251265097,31.35,23.926,23.913,10.0]
[1674251265509,17.0,23.925,23.913,10.0]
[1674251266779,31.35,23.932,23.913,10.0]
[1674251266993,31.35,23.932,23.914,0.96]
[1674251266994,20.0,23.931,23.914,0.96]
[1674251267188,31.35,23.93,23.913,10.0]
[1674251267399,17.0,23.929,23.913,10.0]
[1674251267610,31.35,23.928,23.913,10.0]
[1674251267934,17.0,23.927,23.913,10.0]
[1674251268145,31.35,23.926,23.913,10.0]
[1674251268343,17.0,23.925,23.913,10.0]
[1674251269306,61.36,23.924,23.91,25.8]
[1674251269497,17.96,23.923,23.91,10.0]
[1674251269706,51.36,23.922,23.908,10.0]
[1674251269940,17.0,23.921,23.908,10.0]
[1674251270150,20.0,23.92,23.908,10.0]
[1674251270374,48.36,23.919,23.908,10.0]
[1674251272159,40.16,23.919,23.908,10.0]
[1674251272377,31.36,23.919,23.908,10.0]
[1674251272992,20.0,23.92,23.908,10.0]
[1674251273320,10.0,23.926,23.908,10.0]
[1674251273540,10.0,23.924,23.908,10.0]
[1674251273728,10.0,23.922,23.908,10.0]
[1674251273932,31.36,23.921,23.908,10.0]
[1674251274137,20.0,23.92,23.908,10.0]
[1674251274362,31.36,23.919,23.908,10.0]
[1674251274780,31.36,23.919,23.905,10.0]
[1674251274997,10.0,23.918,23.905,10.0]
[1674251275204,31.36,23.919,23.905,10.0]
[1674251276033,17.96,23.918,23.902,10.0]
[1674251276676,41.37,23.917,23.902,10.0]
[1674251277086,10.0,23.915,23.902,10.0]
[1674251277726,41.37,23.917,23.902,10.0]
[1674251277939,17.0,23.916,23.902,10.0]
[1674251278253,17.0,23.916,23.9,15.83]
[1674251278455,10.0,23.914,23.89,15.87]
[1674251278662,51.37,23.913,23.89,15.87]
[1674251278873,17.96,23.912,23.89,15.87]
[1674251279079,31.37,23.911,23.89,15.87]
[1674251279285,47.96,23.91,23.89,15.87]
[1674251279513,10.0,23.908,23.891,10.0]
[1674251279727,31.38,23.907,23.891,10.0]
[1674251280152,31.38,23.909,23.891,10.0]
[1674251280353,17.0,23.908,23.891,10.0]
[1674251280556,31.38,23.907,23.891,10.0]
[1674251281308,10.0,23.908,23.891,10.0]
[1674251281498,49.34,23.907,23.891,10.0]
[1674251281705,10.0,23.906,23.891,10.0]
[1674251281916,49.34,23.905,23.891,10.0]
[1674251282561,48.38,23.905,23.891,10.0]
[1674251283186,10.96,23.904,23.89,15.87]
[1674251283390,48.38,23.903,23.89,15.87]
[1674251284647,17.0,23.903,23.89,15.87]
[1674251284985,17.0,23.903,23.886,10.0]
[1674251285172,51.39,23.902,23.886,10.0]
[1674251285390,20.0,23.902,23.886,10.0]
[1674251286009,48.38,23.903,23.886,10.0]
[1674251286231,31.37,23.913,23.89,15.87]
[1674251286447,10.0,23.919,23.886,47.74053783]
[1674251286448,10.0,23.909,23.886,47.74053783]
[1674251286645,51.38,23.908,23.886,9.0]
[1674251287065,10.0,23.907,23.886,9.0]
[1674251287299,10.0,23.905,23.886,9.0]
[1674251287610,69.34,23.904,23.886,9.0]
[1674251288348,10.0,23.903,23.886,9.0]
[1674251288555,69.35,23.902,23.886,9.0]
[1674251288749,10.0,23.901,23.886,9.0]
[1674251288950,49.35,23.9,23.886,9.0]
[1674251289168,49.35,23.9,23.884,10.0]
[1674251289378,48.39,23.9,23.884,10.0]
[1674251289697,17.0,23.9,23.884,10.0]
[1674251290119,0.96,23.899,23.884,10.0]
[1674251290329,17.0,23.9,23.884,10.0]
[1674251290749,17.0,23.9,23.886,10.0]
[1674251290960,31.39,23.901,23.886,10.0]
[1674251291170,20.0,23.9,23.886,10.0]
[1674251291705,20.0,23.903,23.886,9.0]
[1674251291899,20.0,23.903,23.887,0.96]
[1674251292105,20.0,23.904,23.887,0.96]
[1674251292320,31.38,23.903,23.887,0.96]
[1674251292556,37.0,23.902,23.887,0.96]
[1674251292870,10.0,23.901,23.886,9.0]
[1674251293074,69.35,23.9,23.886,9.0]
[1674251293787,37.96,23.9,23.886,9.0]
[1674251294218,31.39,23.899,23.886,9.0]
[1674251294650,37.0,23.9,23.886,9.0]
[1674251296437,20.0,23.9,23.886,9.0]
[1674251296758,20.0,23.902,23.887,0.96]
[1674251297155,51.38,23.903,23.887,0.96]
[1674251297366,17.0,23.902,23.887,0.96]
[1674251297575,31.38,23.903,23.887,20.0]
[1674251297806,31.38,23.906,23.89,15.87]
[1674251298117,10.0,23.917,23.891,17.0]
[1674251298118,31.38,23.908,23.891,17.0]
[1674251298308,31.37,23.915,23.891,32.39654563]
[1674251298520,10.0,23.914,23.892,25.39654563]
[1674251298724,31.37,23.913,23.892,25.39654563]
[1674251299364,10.0,23.912,23.892,25.39654563]
[1674251299681,10.0,23.91,23.892,25.39654563]
[1674251299886,48.38,23.909,23.892,25.39654563]
[1674251300106,0.96,23.908,23.89,15.87]
[1674251300416,0.96,23.908,23.888,10.0]
[1674251300417,10.0,23.906,23.888,15.39654563]
[1674251300626,69.34,23.905,23.883,41.81]
[1674251300954,10.0,23.904,23.882,10.0]
[1674251301159,69.34,23.903,23.882,10.0]
[1674251301377,69.34,23.903,23.88,25.92]
[1674251301378,10.0,23.902,23.88,25.92]
[1674251301567,10.0,23.9,23.88,25.92]
[1674251301779,49.35,23.899,23.88,25.92]
[1674251302000,49.35,23.899,23.87,54.61053783]
[1674251302214,10.0,23.897,23.87,15.87]
[1674251302417,31.39,23.896,23.87,15.87]
[1674251302622,37.96,23.895,23.87,15.87]
[1674251302845,10.0,23.893,23.87,15.87]
[1674251303061,69.36,23.892,23.87,15.37]
[1674251303278,10.0,23.891,23.871,10.0]
[1674251303466,69.36,23.89,23.87,15.37]
[1674251303799,10.0,23.889,23.869,41.81]
[1674251304005,49.36,23.888,23.87,10.0]
[1674251304217,30.0,23.887,23.87,10.0]
[1674251304407,49.37,23.886,23.869,15.39654563]
[1674251304624,20.0,23.885,23.868,41.81]
[1674251304949,59.37,23.884,23.868,41.81]
[1674251305140,20.0,23.883,23.869,10.0]
[1674251305346,49.37,23.882,23.869,10.0]
[1674251305559,49.37,23.882,23.869,41.81]
[1674251305771,20.0,23.881,23.85,47.32]
[1674251306002,10.0,23.879,23.852,10.0]
[1674251306203,10.0,23.877,23.856,10.0]
[1674251306522,20.0,23.881,23.86,15.87]
[1674251306720,20.0,23.882,23.864,41.81]
[1674251306936,20.0,23.889,23.864,41.81]
[1674251307146,41.4,23.888,23.866,41.81]
[1674251307365,10.0,23.886,23.868,41.81]
[1674251307580,51.41,23.885,23.868,41.81]
[1674251307785,51.41,23.885,23.868,57.20654563]
[1674251307996,0.96,23.884,23.869,10.0]
[1674251308331,17.96,23.884,23.869,10.0]
[1674251308524,20.0,23.883,23.868,15.39654563]
[1674251308736,17.96,23.882,23.863,10.0]
[1674251308946,17.96,23.882,23.856,10.0]
[1674251308947,51.41,23.881,23.856,10.0]
[1674251309166,10.0,23.879,23.856,10.0]
[1674251309481,10.0,23.877,23.858,10.0]
[1674251309683,51.42,23.876,23.859,41.81]
[1674251309892,10.0,23.875,23.859,41.81]
[1674251310101,51.42,23.874,23.859,41.81]
[1674251310434,20.0,23.873,23.861,41.81]
[1674251310742,31.42,23.872,23.863,41.81]
[1674251310938,20.0,23.871,23.863,41.81]
[1674251311367,20.0,23.871,23.865,40.81]
[1674251311580,20.0,23.877,23.867,40.81]
[1674251311782,49.38,23.876,23.867,40.81]
[1674251311989,49.38,23.876,23.852,10.0]
[1674251312206,20.0,23.875,23.858,14.89654563]
[1674251312529,20.0,23.875,23.859,10.0]
[1674251312932,20.0,23.877,23.859,25.39654563]
[1674251313268,31.42,23.876,23.859,25.36506967]
[1674251313477,20.0,23.875,23.859,25.36506967]
[1674251313699,31.42,23.874,23.859,25.36506967]
[1674251313878,37.96,23.873,23.859,25.36506967]
[1674251314088,37.96,23.873,23.859,10.0]
[1674251314523,31.42,23.872,23.859,10.0]
[1674251314727,20.0,23.871,23.859,10.0]
[1674251315476,10.0,23.875,23.859,10.0]
[1674251315787,52.38,23.874,23.859,10.0]
[1674251316213,51.42,23.874,23.859,10.0]
[1674251317481,20.0,23.874,23.86,0.96]
[1674251317674,20.0,23.875,23.859,25.36506967]
[1674251317886,31.42,23.874,23.859,25.36506967]
[1674251318101,20.0,23.873,23.859,25.36506967]
[1674251318327,31.41,23.885,23.86,32.87]
[1674251318540,31.41,23.885,23.861,41.81]
[1674251318857,20.0,23.884,23.861,15.36506967]
[1674251319038,41.41,23.883,23.862,25.36506967]
[1674251319252,20.0,23.882,23.862,25.36506967]
[1674251319478,31.41,23.881,23.863,0.96]
[1674251319709,31.41,23.882,23.863,16.32506967]
[1674251320009,10.0,23.881,23.862,10.0]
[1674251320329,31.41,23.88,23.861,25.36506967]
[1674251320518,31.41,23.88,23.862,0.96]
[1674251320733,10.0,23.879,23.862,16.32506967]
[1674251320940,31.42,23.878,23.862,16.32506967]
[1674251321152,10.0,23.877,23.862,16.32506967]
[1674251321484,31.42,23.878,23.862,16.32506967]
[1674251321887,27.96,23.877,23.862,15.36506967]
[1674251322217,51.42,23.876,23.861,10.0]
[1674251322423,17.96,23.875,23.861,10.0]
[1674251322638,20.0,23.874,23.861,10.0]
[1674251322953,20.0,23.874,23.861,25.36506967]
[1674251323351,51.42,23.876,23.861,25.36506967]
[1674251323982,51.42,23.876,23.861,10.0]
[1674251324203,20.0,23.876,23.862,15.36506967]
[1674251324409,31.42,23.878,23.862,15.36506967]
[1674251324619,143.2001,23.88,23.864,10.0]
[1674251324822,111.7901,23.88,23.865,0.96]
[1674251325039,10.0,23.879,23.864,25.36506967]
[1674251325245,31.42,23.878,23.864,15.36506967]
[1674251326010,10.0,23.877,23.864,15.36506967]
[1674251326716,17.0,23.876,23.864,15.36506967]
[1674251326926,31.42,23.875,23.864,15.36506967]
[1674251327366,48.42,23.876,23.864,15.36506967]
[1674251327771,10.0,23.875,23.864,15.36506967]
[1674251328512,10.0,23.875,23.861,10.0]
[1674251328513,10.0,23.873,23.861,10.0]
[1674251328728,20.0,23.872,23.861,10.0]
[1674251329762,20.0,23.872,23.859,25.36506967]
[1674251329990,17.0,23.871,23.859,25.36506967]
[1674251330192,17.0,23.871,23.848,35.9797953]
[1674251330193,10.0,23.869,23.848,35.9797953]
[1674251330408,10.0,23.869,23.85,25.87]
[1674251330727,49.39,23.868,23.85,25.87]
[1674251330935,10.0,23.867,23.85,25.87]
[1674251331259,10.0,23.867,23.85,25.36506967]
[1674251331260,68.43,23.866,23.85,25.36506967]
[1674251331448,69.39,23.866,23.85,10.0]
[1674251331877,10.0,23.865,23.85,10.0]
[1674251332090,10.0,23.863,23.85,9.5]
[1674251332300,51.44,23.862,23.85,9.5]
[1674251333886,10.0,23.861,23.849,14.39776865]
[1674251334196,10.0,23.861,23.831,10.0]
[1674251334197,69.4,23.86,23.831,10.0]
[1674251334389,69.4,23.86,23.809,70.88659937]
[1674251334390,10.0,23.859,23.838,14.39776865]
[1674251334603,49.4,23.858,23.821,10.0]
[1674251334811,10.0,23.856,23.823,10.0]
[1674251335038,69.41,23.855,23.823,10.0]
[1674251335246,69.41,23.855,23.824,13.89776865]
[1674251335441,10.0,23.854,23.825,10.0]
[1674251335651,69.41,23.853,23.825,10.0]
[1674251335873,69.41,23.853,23.827,10.0]
[1674251335874,10.0,23.852,23.827,10.0]